bitfinex/quotes_BTCUSD_20241020
["timestamp","ask_amount","ask_price","bid_price","bid_amount"]
[1729436829691,0.21458314,68533.0,68532.0,0.005]
[1729436832391,0.21458314,68533.0,68532.0,0.150917]
[1729436832605,0.06562399,68533.0,68532.0,0.150917]
[1729436832833,0.06768522,68535.0,68534.0,0.145912]
[1729436833114,0.00384493,68536.0,68535.0,0.14591]
[1729436833360,0.06987551,68536.0,68535.0,0.14591]
[1729436833836,0.06987551,68536.0,68535.0,0.15091]
[1729436834086,0.06987551,68536.0,68535.0,0.22651]
[1729436834327,0.06987551,68536.0,68535.0,0.36871]
[1729436834818,0.06987551,68536.0,68535.0,0.37962941]
[1729436834819,0.06768658,68536.0,68535.0,0.37962941]
[1729436835054,0.06768658,68536.0,68535.0,0.42330799]
[1729436835055,0.001656,68536.0,68535.0,0.42330799]
[1729436835289,0.001656,68536.0,68535.0,0.37962941]
[1729436836017,0.001656,68536.0,68535.0,0.44511297]
[1729436836497,0.001656,68536.0,68535.0,0.37962941]
[1729436837518,0.001656,68536.0,68535.0,0.42324034]
[1729436838441,0.001656,68536.0,68535.0,0.37961123]
[1729436840160,0.001656,68536.0,68535.0,0.40261123]
[1729436840613,0.001656,68536.0,68535.0,0.55357038]
[1729436841314,0.001656,68536.0,68535.0,0.59719242]
[1729436841531,0.001656,68536.0,68535.0,0.55357038]
[1729436842233,0.001656,68536.0,68535.0,0.59719242]
[1729436842693,0.001656,68536.0,68535.0,0.55357038]
[1729436842918,0.001656,68536.0,68535.0,0.59713551]
[1729436843421,0.001656,68536.0,68535.0,0.58623295]
[1729436843654,0.001656,68537.0,68536.0,0.185908]
[1729436843883,0.001656,68537.0,68536.0,0.54426715]
[1729436845076,0.001656,68537.0,68536.0,0.56968705]
[1729436845296,0.001656,68537.0,68536.0,0.54426715]
[1729436845535,0.001656,68537.0,68536.0,0.55515935]
[1729436845782,0.001656,68537.0,68536.0,0.56968228]
[1729436846028,0.001656,68537.0,68536.0,0.55515935]
[1729436846506,0.001656,68537.0,68536.0,0.64215205]
[1729436846971,0.001656,68537.0,68536.0,0.55515935]
[1729436847463,0.001656,68537.0,68536.0,1.07984975]
[1729436847919,0.001656,68537.0,68536.0,0.99287935]
[1729436848140,0.001656,68537.0,68536.0,1.10164957]
[1729436848644,0.001656,68537.0,68536.0,1.20164957]
[1729436850260,0.001656,68537.0,68536.0,1.19075737]
[1729436850484,0.001656,68537.0,68536.0,1.20162989]
[1729436850958,0.001656,68537.0,68536.0,1.10373039]
[1729436851220,0.001656,68537.0,68536.0,1.1906504]
[1729436851446,0.001656,68537.0,68536.0,1.19064082]
[1729436851671,0.001656,68537.0,68536.0,1.10373039]
[1729436852345,0.001656,68537.0,68536.0,1.19064458]
[1729436853032,0.001656,68537.0,68536.0,1.19063579]
[1729436853247,0.001656,68537.0,68536.0,1.10373039]
[1729436853470,0.001656,68537.0,68536.0,1.19063082]
[1729436853693,0.001656,68537.0,68536.0,1.19063216]
[1729436853934,0.001656,68537.0,68536.0,1.09285967]
[1729436854166,0.001656,68537.0,68536.0,1.19063002]
[1729436854390,0.001656,68537.0,68536.0,1.10373002]
[1729436854609,0.001656,68537.0,68536.0,1.21235723]
[1729436854831,0.001656,68537.0,68536.0,1.10373002]
[1729436855515,0.001656,68537.0,68536.0,1.21235723]
[1729436855740,0.001656,68537.0,68536.0,1.20148471]
[1729436855952,0.001656,68537.0,68536.0,1.20231271]
[1729436857067,0.001656,68537.0,68536.0,1.0936855]
[1729436857554,0.001656,68537.0,68536.0,1.08281515]
[1729436857786,0.001656,68537.0,68536.0,1.09369451]
[1729436858735,0.001656,68537.0,68536.0,1.20234804]
[1729436860430,0.001656,68537.0,68536.0,1.21685385]
[1729436861149,0.001656,68537.0,68536.0,1.20234804]
[1729436863209,0.001656,68537.0,68536.0,1.09369451]
[1729436865098,0.001656,68537.0,68536.0,1.09372828]
[1729436867493,0.131,68557.0,68548.0,0.183883]
[1729436867729,0.131,68557.0,68548.0,0.185883]
[1729436867965,0.131,68557.0,68548.0,0.183883]
[1729436868207,0.131,68557.0,68552.0,0.160874]
[1729436869190,0.131,68557.0,68552.0,0.17179496]
[1729436869887,0.001656,68559.0,68552.0,0.17179496]
[1729436876033,0.132656,68554.0,68552.0,0.17179496]
[1729436876735,0.001656,68554.0,68552.0,0.17179496]
[1729436877661,0.001656,68554.0,68552.0,0.21539678]
[1729436878397,0.001656,68554.0,68552.0,0.17179496]
[1729436880245,0.001656,68554.0,68552.0,0.17180953]
[1729436881141,0.001656,68554.0,68552.0,0.25912805]
[1729436881362,0.001656,68554.0,68552.0,0.28095768]
[1729436881784,0.001656,68554.0,68552.0,0.28387443]
[1729436883377,0.001656,68554.0,68552.0,0.17472628]
[1729436883822,0.001656,68554.0,68552.0,0.17672628]
[1729436884058,0.001656,68554.0,68552.0,0.42276868]
[1729436884269,0.001656,68554.0,68552.0,0.43734939]
[1729436884496,0.001656,68554.0,68552.0,0.42276868]
[1729436884716,0.001656,68554.0,68552.0,0.86038868]
[1729436885400,0.001656,68554.0,68552.0,0.98438868]
[1729436885671,0.001656,68554.0,68553.0,0.185872]
[1729436885899,0.001656,68554.0,68553.0,0.98438668]
[1729436886138,0.001656,68554.0,68553.0,1.02991908]
[1729436886355,0.001656,68554.0,68553.0,1.22331597]
[1729436886569,0.001656,68554.0,68553.0,0.98438668]
[1729436887870,0.001656,68554.0,68553.0,0.78138668]
[1729436888079,0.001656,68554.0,68553.0,0.80086116]
[1729436890252,0.001656,68554.0,68553.0,0.80083894]
[1729436890896,0.001656,68554.0,68553.0,0.79883894]
[1729436891835,0.001656,68554.0,68553.0,0.81339452]
[1729436892048,0.001656,68554.0,68553.0,0.79883894]
[1729436893377,0.001656,68554.0,68553.0,0.81339452]
[1729436894281,0.001656,68554.0,68553.0,0.8133899]
[1729436894967,0.001656,68554.0,68553.0,0.8153899]
[1729436897134,0.001656,68554.0,68553.0,0.80083439]
[1729436897348,0.001656,68554.0,68553.0,0.8153914]
[1729436897768,0.001656,68554.0,68553.0,0.80083439]
[1729436898209,0.001656,68554.0,68553.0,0.81539135]
[1729436898689,0.001656,68554.0,68553.0,0.80083439]
[1729436899574,0.001656,68554.0,68553.0,0.79883439]
[1729436899842,0.001656,68554.0,68553.0,0.94436353]
[1729436900065,0.001656,68554.0,68553.0,0.81339173]
[1729436900292,0.001656,68554.0,68553.0,0.79883439]
[1729436900734,0.001656,68554.0,68553.0,0.81339189]
[1729436900956,0.001656,68554.0,68553.0,0.81539189]
[1729436901443,0.001656,68554.0,68553.0,0.81339189]
[1729436901896,0.001656,68554.0,68553.0,0.94635802]
[1729436902121,0.001656,68554.0,68553.0,0.81539189]
[1729436902356,0.001656,68554.0,68553.0,0.81539266]
[1729436903501,0.001656,68554.0,68553.0,0.80166139]
[1729436905179,0.001656,68554.0,68553.0,0.77327815]
[1729436905393,0.001656,68554.0,68553.0,0.80166953]
[1729436908338,0.001656,68554.0,68553.0,0.79966953]
[1729436910464,0.001656,68554.0,68553.0,0.80166953]
[1729436911359,0.001656,68554.0,68553.0,0.79966953]
[1729436911595,0.001656,68554.0,68553.0,1.01336953]
[1729436912472,0.001656,68554.0,68553.0,0.98497815]
[1729436912692,0.001656,68554.0,68553.0,1.0134017]
[1729436913377,0.001656,68554.0,68553.0,0.7997017]
[1729436917587,0.001656,68554.0,68553.0,0.84525816]
[1729436920112,0.001656,68554.0,68553.0,0.7997017]
[1729436920576,0.001656,68554.0,68553.0,0.62774255]
[1729436920812,0.001656,68554.0,68553.0,0.6423286]
[1729436921283,0.001656,68554.0,68553.0,0.62774255]
[1729436921802,0.06757036,68554.0,68553.0,0.62774255]
[1729436922064,0.27127036,68554.0,68553.0,0.62774255]
[1729436922310,0.27127036,68554.0,68553.0,0.73699703]
[1729436923025,0.27127036,68554.0,68553.0,0.62774255]
[1729436923950,0.27127036,68554.0,68553.0,0.62773912]
[1729436924688,0.27127036,68554.0,68553.0,0.73700043]
[1729436925149,0.27127036,68554.0,68553.0,0.62773912]
[1729436925375,0.27127036,68554.0,68553.0,0.73700067]
[1729436925599,0.27127036,68554.0,68553.0,0.73700283]
[1729436927286,0.27127036,68554.0,68553.0,0.73699018]
[1729436927724,0.27127036,68554.0,68553.0,0.62772647]
[1729436927939,0.27127036,68554.0,68553.0,0.62772319]
[1729436928161,0.27127036,68554.0,68553.0,0.72605245]
[1729436928376,0.27127036,68554.0,68553.0,0.62772301]
[1729436931603,0.27127036,68554.0,68553.0,0.73696561]
[1729436931835,0.27127036,68554.0,68553.0,0.736959]
[1729436934180,0.27127036,68554.0,68553.0,0.581087]
[1729436934403,0.27127036,68554.0,68553.0,0.438447]
[1729436934404,0.42022951,68554.0,68553.0,0.438447]
[1729436935382,0.42022951,68554.0,68553.0,0.443447]
[1729436935383,0.27127036,68554.0,68553.0,0.443447]
[1729436935837,0.27127036,68554.0,68553.0,0.589319]
[1729436938195,0.27127036,68554.0,68553.0,0.443447]
[1729436946905,0.42022951,68554.0,68553.0,0.443447]
[1729436950627,0.42241797,68554.0,68553.0,0.443447]
[1729436953607,0.42022951,68554.0,68553.0,0.438447]
[1729436953826,0.42022951,68554.0,68553.0,0.443447]
[1729436954040,0.42241789,68554.0,68553.0,0.443447]
[1729436958280,0.42241789,68554.0,68553.0,0.438447]
[1729436959651,0.42241789,68554.0,68553.0,0.443447]
[1729436960831,0.42241789,68554.0,68553.0,0.438447]
[1729436962440,0.42241789,68554.0,68553.0,0.443447]
[1729436968114,0.42241789,68554.0,68553.0,0.438447]
[1729436968337,0.42241789,68554.0,68553.0,0.443447]
[1729436968587,0.42241789,68554.0,68553.0,0.438447]
[1729436971058,0.56828789,68554.0,68553.0,0.438447]
[1729436971305,0.42241789,68554.0,68553.0,0.438447]
[1729436974734,0.42022951,68554.0,68553.0,0.443447]
[1729436975415,0.42241803,68554.0,68553.0,0.443447]
[1729436976763,0.42241803,68554.0,68553.0,0.438447]
[1729436982600,0.42241803,68554.0,68553.0,0.438447]
[1729436982840,0.56828803,68554.0,68553.0,0.438447]
[1729436983070,0.42241803,68554.0,68553.0,0.438447]
[1729436983528,0.56828803,68554.0,68553.0,0.438447]
[1729436986058,0.42241803,68554.0,68553.0,0.438447]
[1729436988150,0.42241803,68554.0,68553.0,0.108447]
[1729436988798,0.42241803,68554.0,68553.0,0.000827]
[1729436990628,0.56828803,68554.0,68553.0,0.000827]
[1729436991332,0.77845128,68554.0,68553.0,0.000827]
[1729436992015,0.66828803,68554.0,68553.0,0.000827]
[1729436993110,0.68189267,68554.0,68553.0,0.000827]
[1729436995374,0.68689267,68554.0,68553.0,0.000827]
[1729436995614,0.73242943,68554.0,68553.0,0.000827]
[1729436995823,0.67528803,68554.0,68553.0,0.000827]
[1729436996043,0.82424718,68554.0,68553.0,0.000827]
[1729436997157,0.88134908,68554.0,68553.0,0.000827]
[1729436998264,0.90307777,68554.0,68553.0,0.000827]
[1729436998758,0.83784296,68554.0,68553.0,0.000827]
[1729436998973,0.88032812,68554.0,68553.0,0.000827]
[1729436999189,0.78299611,68554.0,68553.0,0.000827]
[1729436999406,0.74051095,68554.0,68553.0,0.000827]
[1729436999628,0.67528803,68554.0,68553.0,0.000827]
[1729436999842,0.71776473,68554.0,68553.0,0.000827]
[1729437001202,0.81831429,68554.0,68553.0,0.000827]
[1729437001429,0.96727344,68554.0,68553.0,0.000827]
[1729437001878,0.88030976,68554.0,68553.0,0.000827]
[1729437002104,0.86672388,68554.0,68553.0,0.000827]
[1729437002351,0.95368756,68554.0,68553.0,0.000827]
[1729437002586,0.88972388,68554.0,68553.0,0.000827]
[1729437005293,0.80594618,68554.0,68553.0,0.000827]
[1729437005514,0.76346948,68554.0,68553.0,0.000827]
[1729437006426,0.78630702,68554.0,68553.0,0.000827]
[1729437006642,0.72112557,68554.0,68553.0,0.000827]
[1729437007532,0.48742557,68554.0,68553.0,0.000827]
[1729437007801,0.34155557,68554.0,68553.0,0.000827]
[1729437008256,0.48742557,68554.0,68553.0,0.000827]
[1729437008945,0.555533,68554.0,68553.0,0.000827]
[1729437009193,0.557533,68554.0,68553.0,0.000827]
[1729437009426,0.555533,68554.0,68553.0,0.000827]
[1729437009660,0.48742557,68554.0,68553.0,0.000827]
[1729437015597,0.48942557,68554.0,68553.0,0.000827]
[1729437017559,0.48742557,68554.0,68553.0,0.000827]
[1729437018275,0.48942557,68554.0,68553.0,0.000827]
[1729437019408,0.48742557,68554.0,68553.0,0.000827]
[1729437019850,0.53310488,68554.0,68553.0,0.000827]
[1729437020512,0.49242557,68554.0,68553.0,0.000827]
[1729437022153,0.70092557,68554.0,68553.0,0.000827]
[1729437022377,0.70292557,68554.0,68553.0,0.000827]
[1729437023279,0.70092557,68554.0,68553.0,0.000827]
[1729437023496,0.70570557,68554.0,68553.0,0.000827]
[1729437023929,0.74917558,68554.0,68553.0,0.000827]
[1729437024152,0.70570557,68554.0,68553.0,0.000827]
[1729437028274,0.74917558,68554.0,68553.0,0.000827]
[1729437029385,0.79169169,68554.0,68553.0,0.000827]
[1729437029861,0.57819169,68554.0,68553.0,0.000827]
[1729437030304,0.55535415,68554.0,68553.0,0.000827]
[1729437032329,0.51188414,68554.0,68553.0,0.000827]
[1729437032571,0.51287408,68554.0,68553.0,0.000827]
[1729437032796,0.51287484,68554.0,68553.0,0.000827]
[1729437033941,0.51189722,68554.0,68553.0,0.000827]
[1729437034397,0.57715744,68554.0,68553.0,0.000827]
[1729437037773,0.46936803,68554.0,68553.0,0.000827]
[1729437039775,0.51191057,68554.0,68553.0,0.000827]
[1729437040220,0.46936803,68554.0,68553.0,0.000827]
[1729437040659,0.51191425,68554.0,68553.0,0.000827]
[1729437041158,0.46936803,68554.0,68553.0,0.000827]
[1729437041384,0.32349803,68554.0,68553.0,0.206327]
[1729437042531,0.07453888,68554.0,68553.0,0.206327]
[1729437043499,0.07235036,68554.0,68553.0,0.352199]
[1729437044478,0.07235036,68554.0,68553.0,0.367199]
[1729437044723,0.07235036,68554.0,68553.0,0.37812335]
[1729437045159,0.07453869,68554.0,68553.0,0.42183974]
[1729437045399,0.07235036,68554.0,68553.0,0.42183974]
[1729437045618,0.07235036,68554.0,68553.0,0.37812335]
[1729437047427,0.07235036,68554.0,68553.0,0.367199]
[1729437047903,0.07235036,68554.0,68553.0,0.37810498]
[1729437048345,0.07235036,68554.0,68553.0,0.367199]
[1729437051093,0.07235036,68554.0,68553.0,0.211327]
[1729437051325,0.07235036,68554.0,68553.0,0.357199]
[1729437052244,0.07235036,68554.0,68553.0,0.211327]
[1729437052245,0.0745387,68554.0,68553.0,0.211327]
[1729437052708,0.0745387,68554.0,68553.0,0.357199]
[1729437053859,0.0745387,68554.0,68553.0,0.080827]
[1729437053860,0.2204087,68554.0,68553.0,0.080827]
[1729437054097,0.2204087,68554.0,68553.0,0.000827]
[1729437054098,0.36936785,68554.0,68553.0,0.000827]
[1729437055044,0.36717951,68554.0,68553.0,0.000827]
[1729437055952,0.38825642,68554.0,68553.0,0.000827]
[1729437056182,0.36717951,68554.0,68553.0,0.000827]
[1729437058687,0.22130951,68554.0,68553.0,0.000827]
[1729437061499,0.22130951,68554.0,68553.0,0.146699]
[1729437061957,0.07235036,68554.0,68553.0,0.146699]
[1729437062174,0.07453886,68554.0,68553.0,0.000827]
[1729437062392,0.07453886,68554.0,68553.0,0.146699]
[1729437063289,0.07453886,68554.0,68553.0,0.000827]
[1729437069037,0.07453886,68554.0,68553.0,0.146699]
[1729437069238,0.07453886,68554.0,68553.0,0.284099]
[1729437071675,0.07453886,68554.0,68553.0,0.29501817]
[1729437071877,0.07453886,68554.0,68553.0,0.284099]
[1729437072256,0.07453886,68554.0,68553.0,0.29501866]
[1729437074055,0.07453886,68554.0,68553.0,0.30501866]
[1729437074868,0.07453886,68554.0,68553.0,0.30501872]
[1729437076586,0.07453886,68554.0,68553.0,0.30001872]
[1729437076808,0.07453886,68554.0,68553.0,0.29501872]
[1729437078784,0.07453886,68554.0,68553.0,0.29502021]
[1729437082471,0.07453886,68554.0,68553.0,0.29502016]
[1729437084729,0.07235036,68554.0,68553.0,0.30502016]
[1729437086227,0.07235036,68554.0,68553.0,0.294099]
[1729437086432,0.07235036,68554.0,68553.0,0.3050229]
[1729437088804,0.006436,68554.0,68553.0,0.37054055]
[1729437089054,0.006436,68554.0,68553.0,0.3050229]
[1729437089471,0.006436,68554.0,68553.0,0.39239118]
[1729437090350,0.006436,68554.0,68553.0,0.3050229]
[1729437091909,0.006436,68554.0,68553.0,0.39237489]
[1729437092355,0.006436,68554.0,68553.0,0.3801229]
[1729437093628,0.006436,68554.0,68553.0,0.369199]
[1729437093845,0.006436,68554.0,68553.0,0.38012657]
[1729437094503,0.006436,68554.0,68553.0,0.48928426]
[1729437094724,0.006436,68554.0,68553.0,0.48927901]
[1729437094927,0.006436,68554.0,68553.0,0.38012657]
[1729437095143,0.006436,68554.0,68553.0,0.48927958]
[1729437095347,0.006436,68554.0,68553.0,0.38012657]
[1729437095609,0.006436,68554.0,68553.0,0.48927185]
[1729437097190,0.006436,68554.0,68553.0,0.47834428]
[1729437097399,0.006436,68554.0,68553.0,0.4892687]
[1729437098009,0.006436,68554.0,68553.0,0.38012342]
[1729437098874,0.006436,68554.0,68553.0,0.4892687]
[1729437099080,0.006436,68554.0,68553.0,0.38012342]
[1729437099292,0.006436,68554.0,68553.0,0.23809361]
[1729437099911,0.006436,68554.0,68553.0,0.23809419]
[1729437100673,0.006436,68554.0,68553.0,0.17262342]
[1729437100882,0.006436,68554.0,68553.0,0.23810936]
[1729437101058,0.07194063,68554.0,68553.0,0.23810936]
[1729437101465,0.07194063,68554.0,68553.0,0.17262342]
[1729437104332,0.07194063,68554.0,68553.0,0.161699]
[1729437104827,0.07194063,68554.0,68553.0,0.17262473]
[1729437112028,0.07194063,68554.0,68553.0,0.161699]
[1729437112281,0.07194063,68554.0,68553.0,0.17262906]
[1729437116105,0.07194063,68554.0,68553.0,0.17263251]
[1729437122399,0.07194063,68554.0,68553.0,0.161699]
[1729437122615,0.07194063,68554.0,68553.0,0.17263673]
[1729437126263,0.07194063,68554.0,68553.0,0.161699]
[1729437126471,0.07194063,68554.0,68553.0,0.17263762]
[1729437129362,0.07194063,68554.0,68553.0,0.161699]
[1729437129779,0.07194063,68554.0,68553.0,0.17263988]
[1729437130395,0.07194063,68554.0,68553.0,0.19014519]
[1729437135054,0.07194063,68554.0,68553.0,0.32133437]
[1729437135470,0.07194063,68554.0,68553.0,0.19014519]
[1729437135679,0.07194063,68554.0,68553.0,0.32133437]
[1729437135895,0.07194063,68554.0,68553.0,0.19014519]
[1729437136110,0.07194063,68554.0,68553.0,0.32133437]
[1729437136531,0.07194063,68554.0,68553.0,0.19014519]
[1729437136747,0.07194063,68554.0,68553.0,0.32133437]
[1729437137377,0.07194063,68554.0,68553.0,0.19014519]
[1729437137844,0.07194063,68554.0,68553.0,0.32133437]
[1729437138267,0.07194063,68554.0,68553.0,0.19014519]
[1729437138476,0.07194063,68554.0,68553.0,0.32133437]
[1729437139129,0.07194063,68554.0,68553.0,0.19014519]
[1729437140120,0.07194063,68554.0,68553.0,0.161699]
[1729437140348,0.07194063,68554.0,68553.0,0.19014415]
[1729437140516,0.07194063,68554.0,68553.0,0.32133333]
[1729437140715,0.07194063,68554.0,68553.0,0.19014415]
[1729437140921,0.07194063,68554.0,68553.0,0.32133333]
[1729437142317,0.07194063,68554.0,68553.0,0.19014415]
[1729437142750,0.07194063,68554.0,68553.0,0.32133333]
[1729437143075,0.07194063,68554.0,68553.0,0.19014415]
[1729437143781,0.07194063,68554.0,68553.0,0.161699]
[1729437143994,0.07194063,68554.0,68553.0,0.19014433]
[1729437144463,0.07194063,68554.0,68553.0,0.32133351]
[1729437145122,0.07194063,68554.0,68553.0,0.19014433]
[1729437145123,0.006436,68554.0,68553.0,0.19014433]
[1729437146419,0.006436,68554.0,68553.0,0.161699]
[1729437146649,0.006436,68554.0,68553.0,0.32142272]
[1729437147087,0.20056548,68554.0,68553.0,0.19014185]
[1729437147543,0.20056548,68554.0,68553.0,0.17263884]
[1729437147753,0.20056548,68554.0,68553.0,0.19014258]
[1729437148399,0.07256548,68554.0,68553.0,0.19014258]
[1729437148614,0.07256548,68554.0,68553.0,0.32142695]
[1729437149922,0.07256548,68554.0,68553.0,0.32142179]
[1729437150161,0.07256548,68554.0,68553.0,0.3214213]
[1729437150579,0.006436,68554.0,68553.0,0.19014258]
[1729437154782,0.006436,68554.0,68553.0,0.41385815]
[1729437154996,0.006436,68554.0,68553.0,0.56829761]
[1729437155808,0.006436,68554.0,68553.0,0.58288188]
[1729437156252,0.006436,68554.0,68553.0,0.56829761]
[1729437158370,0.006436,68554.0,68553.0,0.36209761]
[1729437158985,0.006436,68554.0,68553.0,0.36209158]
[1729437159514,0.006436,68554.0,68553.0,0.49333622]
[1729437159931,0.006436,68554.0,68553.0,0.51520832]
[1729437162407,0.006436,68554.0,68553.0,0.51520997]
[1729437162824,0.006436,68554.0,68553.0,0.38396533]
[1729437163036,0.006436,68554.0,68553.0,0.515208]
[1729437164925,0.006436,68554.0,68553.0,0.38396533]
[1729437165979,0.006436,68554.0,68553.0,0.51520558]
[1729437166496,0.006436,68554.0,68553.0,0.38396533]
[1729437166747,0.006436,68554.0,68553.0,0.51520656]
[1729437166931,0.006436,68554.0,68553.0,0.38396533]
[1729437167765,0.006436,68554.0,68553.0,0.51520526]
[1729437168008,0.006436,68554.0,68553.0,0.51520593]
[1729437168455,0.006436,68554.0,68553.0,0.38396533]
[1729437169031,0.006436,68554.0,68553.0,0.36209264]
[1729437170001,0.006436,68554.0,68553.0,0.36209409]
[1729437170444,0.006436,68554.0,68553.0,0.36209416]
[1729437170641,0.006436,68554.0,68553.0,0.3620942]
[1729437172078,0.006436,68554.0,68553.0,0.19013505]
[1729437172662,0.0760774,68554.0,68553.0,0.19013505]
[1729437173145,0.006436,68554.0,68553.0,0.19013505]
[1729437173784,0.07680711,68554.0,68553.0,0.19013505]
[1729437175638,0.07680711,68554.0,68553.0,0.19940715]
[1729437177561,0.07680711,68554.0,68553.0,0.1709711]
[1729437177772,0.07680711,68554.0,68553.0,0.22783399]
[1729437178020,0.07680711,68554.0,68553.0,0.2562652]
[1729437180995,0.07680711,68554.0,68553.0,0.22783399]
[1729437181299,0.07680711,68554.0,68553.0,0.25626481]
[1729437181516,0.07680711,68554.0,68553.0,0.22783399]
[1729437181724,0.07680711,68554.0,68553.0,0.2562644]
[1729437187011,0.07680711,68554.0,68553.0,0.3656195]
[1729437187438,0.07680711,68554.0,68553.0,0.19940151]
[1729437187640,0.07680711,68554.0,68553.0,0.30875273]
[1729437188501,0.07680711,68554.0,68553.0,0.30874937]
[1729437189541,0.07680711,68554.0,68553.0,0.19940151]
[1729437189951,0.07680711,68554.0,68553.0,0.30874677]
[1729437190371,0.07680711,68554.0,68553.0,0.19940151]
[1729437190597,0.07680711,68554.0,68553.0,0.30874386]
[1729437190800,0.07680711,68554.0,68553.0,0.19940151]
[1729437191667,0.07680711,68554.0,68553.0,0.1709711]
[1729437191870,0.07680711,68554.0,68553.0,0.19940249]
[1729437193955,0.006436,68554.0,68553.0,0.19940249]
[1729437195287,0.006436,68554.0,68553.0,0.1709711]
[1729437205422,0.006436,68554.0,68553.0,0.28033873]
[1729437205894,0.006436,68554.0,68553.0,0.27033873]
[1729437206145,0.27227846,68554.0,68553.0,0.1559711]
[1729437206396,0.27227846,68554.0,68553.0,0.2215914]
[1729437206593,0.27227846,68554.0,68553.0,0.1559711]
[1729437206783,0.27227846,68554.0,68553.0,0.19971406]
[1729437206979,0.27574719,68554.0,68553.0,0.19971406]
[1729437208581,0.27574719,68554.0,68553.0,0.1559711]
[1729437211008,0.27574719,68554.0,68553.0,0.0100991]
[1729437211441,0.42470634,68554.0,68553.0,0.0100991]
[1729437211664,0.57057634,68554.0,68553.0,0.0100991]
[1729437215130,0.44618941,68554.0,68553.0,0.0100991]
[1729437220228,0.59205941,68554.0,68553.0,0.0100991]
[1729437222638,0.69205941,68554.0,68553.0,0.0100991]
[1729437222871,0.69405941,68554.0,68553.0,0.0100991]
[1729437225565,0.69405941,68554.0,68553.0,0.0094991]
[1729437226287,0.69205941,68554.0,68553.0,0.0094991]
[1729437226534,0.54618941,68554.0,68553.0,0.0094991]
[1729437226763,0.52470634,68554.0,68553.0,0.0094991]
[1729437228306,0.32460634,68554.0,68553.0,0.0094991]
[1729437228511,0.07564719,68554.0,68553.0,0.0094991]
[1729437232251,0.07564719,68554.0,68553.0,0.1553711]
[1729437232507,0.07783556,68554.0,68553.0,0.1553711]
[1729437235897,0.07564719,68554.0,68553.0,0.1553711]
[1729437236564,0.07783556,68554.0,68553.0,0.1553711]
[1729437236785,0.07564719,68554.0,68553.0,0.1553711]
[1729437237697,0.0778356,68554.0,68553.0,0.1553711]
[1729437239454,0.0778356,68554.0,68553.0,0.0094991]
[1729437241981,0.2237056,68554.0,68553.0,0.0094991]
[1729437242452,0.37266475,68554.0,68553.0,0.0094991]
[1729437245098,0.22679475,68554.0,68553.0,0.0094991]
[1729437252131,0.22460634,68554.0,68553.0,0.0094991]
[1729437252980,0.22679514,68554.0,68553.0,0.0094991]
[1729437255834,0.22460634,68554.0,68553.0,0.0094991]
[1729437256550,0.22679514,68554.0,68553.0,0.0094991]
[1729437268508,0.07564719,68554.0,68553.0,0.1553711]
[1729437269445,0.07783579,68554.0,68553.0,0.1553711]
[1729437270390,0.07783579,68554.0,68553.0,0.2305711]
[1729437270626,0.07564719,68554.0,68553.0,0.3656084]
[1729437271407,0.07783585,68554.0,68553.0,0.3656084]
[1729437271649,0.07783585,68554.0,68553.0,0.2197364]
[1729437272096,0.07783585,68554.0,68553.0,0.0094991]
[1729437272097,0.07564719,68554.0,68553.0,0.0094991]
[1729437272308,0.07783562,68554.0,68553.0,0.0094991]
[1729437274257,0.22370562,68554.0,68553.0,0.0094991]
[1729437274472,0.07783562,68554.0,68553.0,0.0094991]
[1729437275385,0.66746477,68554.0,68553.0,0.0094991]
[1729437275845,0.71103479,68554.0,68553.0,0.0094991]
[1729437276494,0.66746477,68554.0,68553.0,0.0094991]
[1729437276918,0.71103479,68554.0,68553.0,0.0094991]
[1729437277144,0.66746477,68554.0,68553.0,0.0094991]
[1729437277368,0.73207278,68554.0,68553.0,0.0094991]
[1729437277593,0.68851689,68554.0,68553.0,0.0094991]
[1729437279363,0.69051689,68554.0,68553.0,0.0094991]
[1729437280078,0.68832846,68554.0,68553.0,0.0094991]
[1729437280520,0.73407344,68554.0,68553.0,0.0094991]
[1729437280737,0.73188435,68554.0,68553.0,0.0094991]
[1729437280984,0.69051728,68554.0,68553.0,0.0094991]
[1729437282320,0.68851728,68554.0,68553.0,0.0094991]
[1729437283690,0.68632846,68554.0,68553.0,0.0094991]
[1729437285009,0.68851758,68554.0,68553.0,0.0094991]
[1729437293108,0.68851758,68554.0,68553.0,0.0092721]
[1729437293316,0.68851758,68554.0,68553.0,0.0001452]
[1729437294446,0.68851758,68554.0,68553.0,0.0009732]
[1729437296457,0.71135287,68554.0,68553.0,0.0009732]
[1729437298899,0.8525798,68554.0,68553.0,0.0009732]
[1729437299141,0.71135287,68554.0,68553.0,0.0009732]
[1729437301266,0.7715491,68554.0,68553.0,0.0009732]
[1729437301506,0.90110012,68554.0,68553.0,0.0009732]
[1729437301776,0.145902,68539.0,68538.0,0.21846622]
[1729437302034,0.39027761,68539.0,68538.0,0.21846622]
[1729437302295,0.39027761,68539.0,68537.0,0.000828]
[1729437302296,0.145904,68538.0,68537.0,0.000828]
[1729437302520,0.36394034,68538.0,68537.0,0.000828]
[1729437303692,0.38809012,68538.0,68537.0,0.000828]
[1729437306309,0.48809012,68538.0,68537.0,0.000828]
[1729437306545,0.48573914,68538.0,68537.0,0.000828]
[1729437309216,0.60523355,68538.0,68537.0,0.000828]
[1729437309658,0.48573914,68538.0,68537.0,0.000828]
[1729437317033,0.61133914,68538.0,68537.0,0.000828]
[1729437317261,0.69423914,68538.0,68537.0,0.000828]
[1729437317939,0.69642852,68538.0,68537.0,0.000828]
[1729437319312,0.48573914,68538.0,68537.0,0.000828]
[1729437319535,0.48792852,68538.0,68537.0,0.000828]
[1729437320213,0.46612972,68538.0,68537.0,0.000828]
[1729437323031,0.46394034,68538.0,68537.0,0.000828]
[1729437323253,0.46612972,68538.0,68537.0,0.000828]
[1729437323961,0.07126657,68538.0,68537.0,0.201328]
[1729437325076,0.17126657,68538.0,68537.0,0.201328]
[1729437325541,0.31717057,68538.0,68537.0,0.201328]
[1729437335556,0.31717057,68538.0,68537.0,0.000828]
[1729437351906,0.21498119,68538.0,68537.0,0.000828]
[1729437352142,0.06907719,68538.0,68537.0,0.000828]
[1729437352382,0.21498119,68538.0,68537.0,0.000828]
[1729437353010,0.21717009,68538.0,68537.0,0.000828]
[1729437356110,0.21498119,68538.0,68537.0,0.000828]
[1729437357698,0.06907719,68538.0,68537.0,0.000828]
[1729437358356,0.145904,68538.0,68537.0,0.000828]
[1729437358575,0.21409554,68538.0,68537.0,0.000828]
[1729437362126,0.06819154,68538.0,68537.0,0.146734]